bitfinex-derivatives/quotes_SOLF0:USTF0_20260210
["timestamp","ask_amount","ask_price","bid_price","bid_amount"]
[1770734159610,3.90301948,84.61,84.533,3.86877195]
[1770734159804,10.6504,84.571,84.507,3.86877195]
[1770734160002,10.6504,84.571,84.515,10.6573]
[1770734160206,12.37972503,84.608,84.507,3.86877195]
[1770734160408,10.6461,84.605,84.507,3.86877195]
[1770734160612,3.90301948,84.63,84.546,3.86877195]
[1770734161116,3.90301948,84.652,84.561,3.86877195]
[1770734161809,3.90301948,84.652,84.578,10.6494]
[1770734162015,3.90301948,84.652,84.561,3.86877195]
[1770734162513,3.90301948,84.649,84.53,3.86877195]
[1770734162701,127.54,84.651,84.508,3.86877195]
[1770734162702,3.90301948,84.59,84.508,3.86877195]
[1770734162902,3.90301948,84.569,84.476,3.86877195]
[1770734163312,3.90301948,84.589,84.491,3.86877195]
[1770734163902,3.90301948,84.589,84.52,10.6567]
[1770734164102,3.90301948,84.589,84.516,3.86877195]
[1770734164309,3.90301948,84.589,84.491,3.86877195]
[1770734165105,3.90301948,84.613,84.52,3.86877195]
[1770734165302,40.65824408,84.64,84.52,3.86877195]
[1770734165507,40.65824408,84.64,84.515,165.781]
[1770734165508,3.90301948,84.64,84.564,3.86877195]
[1770734165913,3.90301948,84.64,84.531,3.86877195]
[1770734166510,36.7552246,84.66,84.527,192.52]
[1770734166511,3.90301948,84.666,84.592,10.6476]
[1770734166712,3.90301948,84.666,84.572,3.86877195]
[1770734166913,10.95333969,84.677,84.562,10.6514]
[1770734166914,10.6439,84.623,84.562,10.6514]
[1770734167109,3.90301948,84.634,84.548,3.86877195]
[1770734167309,3.90301948,84.619,84.503,192.52]
[1770734167517,10.6493,84.58,84.524,10.6562]
[1770734167715,3.90301948,84.595,84.524,10.6562]
[1770734167910,3.90301948,84.595,84.504,3.86877195]
[1770734168120,3.90301948,84.612,84.521,3.86877195]
[1770734168515,10.6456,84.609,84.536,10.6546]
[1770734168716,3.90301948,84.612,84.521,3.86877195]
[1770734169716,10.6478,84.591,84.525,10.6561]
[1770734169915,10.95333969,84.622,84.521,3.86877195]
[1770734169916,3.90301948,84.59,84.521,3.86877195]
[1770734170115,3.90301948,84.59,84.46,187.2168]
[1770734170116,3.90301948,84.59,84.481,3.86877195]
[1770734170813,3.90301948,84.59,84.484,3.86877195]
[1770734171017,3.90301948,84.59,84.481,3.86877195]
[1770734171213,3.90301948,84.579,84.481,3.86877195]
[1770734171416,14.55821948,84.532,84.47,10.663]
[1770734171716,36.7552246,84.56,84.458,3.86877195]
[1770734171717,3.90301948,84.553,84.458,3.86877195]
[1770734173122,3.90301948,84.541,84.458,3.86877195]
[1770734173616,3.90301948,84.541,84.39,21.88946993]
[1770734173617,3.90301948,84.539,84.437,3.86877195]
[1770734174015,3.90301948,84.519,84.411,3.86877195]
[1770734174215,3.90301948,84.519,84.44,3.86877195]
[1770734174806,3.90301948,84.542,84.463,3.86877195]
[1770734175409,10.6546,84.538,84.469,10.6631]
[1770734175709,24.51670339,84.52,84.416,3.86877195]
[1770734175911,3.90301948,84.514,84.416,3.86877195]
[1770734176308,129.93950063,84.543,84.399,193.48]
[1770734176309,3.90301948,84.536,84.431,3.86877195]
[1770734176510,3.90301948,84.535,84.452,3.86877195]
[1770734176919,14.55791948,84.535,84.465,10.6636]
[1770734177120,3.90301948,84.535,84.452,3.86877195]
[1770734177716,3.90301948,84.559,84.469,3.86877195]
[1770734177923,3.90301948,84.559,84.43,24.51670339]
[1770734177924,3.90301948,84.559,84.443,3.86877195]
[1770734178118,3.90301948,84.532,84.443,3.86877195]
[1770734178321,3.90301948,84.532,84.456,3.86877195]
[1770734179018,10.6543,84.54,84.468,3.86877195]
[1770734179422,3.90301948,84.552,84.468,3.86877195]
[1770734180323,4.00161026,84.539,84.431,3.70798033]
[1770734180520,4.00161026,84.537,84.431,3.70798033]
[1770734181014,4.00161026,84.519,84.401,3.70798033]
[1770734182019,10.6624,84.475,84.417,10.6696]
[1770734182215,3.8994827,84.493,84.401,3.70798033]
[1770734182520,3.8994827,84.493,84.335,35.62]
[1770734182521,3.8994827,84.479,84.373,3.72239733]
[1770734183122,3.8994827,84.459,84.347,3.72239733]
[1770734183621,3.8994827,84.459,84.374,3.72239733]
[1770734184016,10.6683,84.429,84.374,3.72239733]
[1770734184223,3.8994827,84.459,84.374,3.72239733]
[1770734184719,3.8994827,84.438,84.351,3.72239733]
[1770734185220,3.8994827,84.459,84.368,3.72239733]
[1770734186421,10.6683,84.429,84.368,3.72239733]
[1770734186628,3.8994827,84.438,84.346,471.17599936]
[1770734186826,3.8994827,84.438,84.347,3.72239733]
[1770734187022,10.667,84.439,84.379,10.6745]
[1770734187320,3.8994827,84.459,84.38,3.72239733]
[1770734187514,10.6657,84.45,84.383,10.674]
[1770734187721,10.6657,84.45,84.346,467.45360203]
[1770734187722,3.8994827,84.459,84.356,3.72239733]
[1770734188124,3.8994827,84.459,84.279,21.89194204]
[1770734188125,3.8994827,84.409,84.331,3.72239733]
[1770734188824,3.8994827,84.439,84.345,3.72239733]
[1770734189226,3.8994827,84.412,84.345,3.72239733]
[1770734189732,3.8994827,84.412,84.301,3.72239733]
[1770734190023,21.3318,84.448,84.326,3.72239733]
[1770734190024,3.8994827,84.434,84.326,3.72239733]
[1770734190529,3.8994827,84.419,84.326,3.72239733]
[1770734190725,3.8994827,84.396,84.303,3.72239733]
[1770734191826,3.8994827,84.396,84.335,10.68]
[1770734192032,3.8994827,84.396,84.325,3.72239733]
[1770734192419,14.5718827,84.396,84.326,10.6812]
[1770734192621,3.8994827,84.396,84.291,3.72239733]
[1770734193027,3.8994827,84.396,84.304,3.72239733]
[1770734193526,3.8994827,84.396,84.306,3.72239733]
[1770734194925,3.8994827,84.396,84.308,10.6834]
[1770734194926,10.6751,84.375,84.308,10.6834]
[1770734195230,3.8994827,84.369,84.281,3.72239733]
[1770734195527,165.9754,84.417,84.281,3.72239733]
[1770734195528,9.64254597,84.35,84.281,3.72239733]
[1770734196230,9.64254597,84.35,84.284,10.6865]
[1770734196530,13.54202867,84.35,84.284,10.6865]
[1770734197031,3.8994827,84.389,84.301,3.72239733]
[1770734197326,10.674,84.384,84.301,3.72239733]
[1770734197633,128.2,84.409,84.264,166.275]
[1770734197634,3.8994827,84.409,84.329,3.72239733]
[1770734198221,9.64254597,84.43,84.341,3.72239733]
[1770734198623,3.8994827,84.433,84.35,9.63054553]
[1770734198824,3.8994827,84.433,84.351,3.72239733]
[1770734199627,10.6708,84.409,84.351,3.72239733]
[1770734199829,9.63054553,84.43,84.351,3.72239733]
[1770734200434,3.8994827,84.433,84.351,3.72239733]
[1770734200435,10.6697,84.418,84.351,3.72239733]
[1770734200634,3.8994827,84.429,84.351,3.72239733]
[1770734201034,10.6709,84.408,84.351,3.72239733]
[1770734201628,10.6695,84.419,84.366,10.6761]
[1770734201934,3.8994827,84.429,84.351,3.72239733]
[1770734203438,3.8994827,84.429,84.363,10.6766]
[1770734203628,3.8994827,84.429,84.351,3.72239733]
[1770734203936,10.6723,84.398,84.34,9.63054553]
[1770734204131,3.8994827,84.429,84.34,9.63054553]
[1770734204432,3.8994827,84.389,84.287,3.72239733]
[1770734204640,3.8994827,84.369,84.287,3.72239733]
[1770734205029,166.0056,84.402,84.245,652.04149648]
[1770734205030,10.68,84.337,84.265,3.72239733]
[1770734205640,10.6801,84.335,84.28,10.687]
[1770734206141,9.63054553,84.33,84.272,10.688]
[1770734206342,3.8994827,84.345,84.265,3.72239733]
[1770734206838,21.3489,84.38,84.271,10.6882]
[1770734206839,3.8994827,84.339,84.271,10.6882]
[1770734207039,3.8994827,84.339,84.265,3.72239733]
[1770734207539,9.63054553,84.33,84.269,3.72239733]
[1770734208037,10.6812,84.327,84.27,10.6883]
[1770734208340,3.8994827,84.339,84.246,3.72239733]
[1770734209042,10.6822,84.319,84.251,14.41309733]
[1770734209742,10.6834,84.31,84.251,14.41309733]
[1770734210131,13.61791544,84.32,84.251,3.72239733]
[1770734210342,3.98736991,84.319,84.245,459.52149648]
[1770734210636,3.98736991,84.319,84.23,3.95395166]
[1770734210839,10.6866,84.285,84.23,3.95395166]
[1770734211043,3.98736991,84.279,84.203,3.95395166]
[1770734212141,9.63054553,84.3,84.176,193.44]
[1770734212142,3.98736991,84.299,84.211,3.95395166]
[1770734212347,3.98736991,84.299,84.214,3.95395166]
[1770734213247,3.98736991,84.289,84.191,3.95395166]
[1770734213441,3.98736991,84.289,84.196,3.95395166]
[1770734213942,10.688,84.273,84.209,3.95395166]
[1770734214141,3.98736991,84.289,84.209,3.95395166]
[1770734214346,3.98736991,84.289,84.211,3.95395166]
[1770734215051,3.98736991,84.289,84.191,3.95395166]
[1770734215349,3.98736991,84.289,84.202,3.95395166]
[1770734215750,13.61791544,84.31,84.221,3.95395166]
[1770734216045,13.61791544,84.31,84.22,9.63054553]
[1770734216046,3.98736991,84.309,84.241,3.95395166]
[1770734216742,14.67076991,84.309,84.245,10.6915]
[1770734216939,14.67076991,84.309,84.246,3.95395166]
[1770734216940,10.6834,84.309,84.246,3.95395166]
[1770734217140,3.98736991,84.361,84.281,3.95395166]
[1770734217341,10.6784,84.349,84.287,3.95395166]
[1770734217548,3.98736991,84.361,84.287,3.95395166]
[1770734218046,10.6782,84.351,84.288,3.95395166]
[1770734218349,3.98736991,84.361,84.28,9.63054553]
[1770734218544,3.98736991,84.361,84.265,3.95395166]
[1770734218848,10.6797,84.339,84.265,3.95395166]
[1770734219050,3.98736991,84.361,84.281,3.95395166]
[1770734219847,10.6781,84.351,84.282,10.6867]
[1770734220052,128.3,84.377,84.301,3.95395166]
[1770734220247,3.98736991,84.382,84.281,3.95395166]
[1770734220455,3.98736991,84.362,84.281,3.95395166]
[1770734221057,3.98736991,84.362,84.294,3.95395166]
[1770734221354,3.98736991,84.362,84.28,9.63054553]
[1770734221855,3.98736991,84.34,84.26,9.63054553]
[1770734222051,3.98736991,84.34,84.261,3.95395166]
[1770734222360,10.6799,84.337,84.271,3.95395166]
[1770734222556,3.98736991,84.34,84.247,3.95395166]
[1770734222761,3.98736991,84.295,84.229,10.6934]
[1770734223054,3.98736991,84.295,84.226,3.95395166]
[1770734223055,3.98736991,84.316,84.226,3.95395166]
[1770734223251,10.6828,84.315,84.248,10.6911]
[1770734223452,3.98736991,84.309,84.228,3.95395166]
[1770734223648,3.98736991,84.309,84.23,3.95395166]
[1770734223852,10.6851,84.296,84.23,3.95395166]
[1770734224050,3.98736991,84.295,84.23,3.95395166]
[1770734225649,128.62,84.337,84.158,166.4851]
[1770734225650,3.98736991,84.289,84.209,3.95395166]
[1770734225847,3.98736991,84.289,84.21,9.67925011]
[1770734226057,3.98736991,84.289,84.209,3.95395166]
[1770734226463,3.98736991,84.289,84.175,193.28]
[1770734226464,13.61791544,84.31,84.221,3.95395166]
[1770734226659,13.61791544,84.31,84.22,9.63054553]
[1770734226660,13.61791544,84.31,84.223,3.95395166]
[1770734226960,3.98736991,84.309,84.225,3.95395166]
[1770734227164,3.98736991,84.289,84.203,3.95395166]
[1770734227457,3.98736991,84.269,84.203,3.95395166]
[1770734227960,3.98736991,84.269,84.171,3.95395166]
[1770734228160,10.692,84.242,84.176,14.65415166]
[1770734228366,3.98736991,84.269,84.178,3.95395166]
[1770734228667,3.98736991,84.269,84.183,3.95395166]
[1770734228857,3.98736991,84.269,84.185,3.95395166]
[1770734229055,3.98736991,84.269,84.186,9.68896814]
[1770734229255,10.6928,84.235,84.185,3.95395166]
[1770734229456,3.98736991,84.269,84.186,9.92155982]
[1770734229761,3.98736991,84.269,84.187,3.95395166]
[1770734229762,10.6924,84.239,84.187,3.95395166]
[1770734229965,3.98736991,84.249,84.165,3.95395166]
[1770734230168,3.98736991,84.249,84.167,3.95395166]
[1770734230368,10.6939,84.227,84.168,9.92216769]
[1770734230661,3.98736991,84.229,84.169,6.769e-05]
[1770734230970,9.63054553,84.21,84.147,3.95395166]
[1770734231168,3.98736991,84.229,84.147,3.95395166]
[1770734231359,3.98736991,84.199,84.118,3.95395166]
[1770734231971,10.6991,84.186,84.118,3.95395166]
[1770734232265,9.63054553,84.19,84.118,3.95395166]
[1770734232565,3.98736991,84.199,84.118,3.95395166]
[1770734233063,3.98736991,84.221,84.141,3.95395166]
[1770734233572,3.98736991,84.221,84.146,3.95395166]
[1770734234069,128.76,84.243,84.161,3.95395166]
[1770734234367,3.98736991,84.242,84.161,3.95395166]
[1770734234754,10.6962,84.208,84.119,192.7]
[1770734234959,3.98736991,84.219,84.14,3.95395166]
[1770734235267,10.6988,84.188,84.14,3.95395166]
[1770734235758,3.98736991,84.239,84.141,3.95395166]
[1770734235960,3.98736991,84.239,84.161,3.95395166]
[1770734236163,3.98736991,84.259,84.161,3.95395166]
[1770734236362,3.98736991,84.259,84.171,3.95395166]
[1770734236862,3.98736991,84.257,84.171,3.95395166]
[1770734237066,3.98736991,84.239,84.171,3.95395166]
[1770734237661,3.98736991,84.239,84.149,3.95395166]
[1770734237861,166.2971,84.254,84.149,3.95395166]
[1770734237862,3.98736991,84.219,84.149,3.95395166]
[1770734238365,10.6977,84.197,84.149,3.95395166]
[1770734238568,3.98736991,84.219,84.149,3.95395166]
[1770734238763,10.6975,84.198,84.149,3.95395166]
[1770734238969,13.66943836,84.24,84.151,3.95395166]
[1770734239166,3.98736991,84.295,84.201,3.95395166]
[1770734239364,10.6927,84.236,84.171,3.95395166]
[1770734240468,10.6938,84.228,84.174,3.6909453]
[1770734240671,3.96624257,84.239,84.174,3.6909453]
[1770734240872,10.6949,84.219,84.174,3.6909453]
[1770734241168,10.6949,84.219,84.163,10.7018]
[1770734241169,3.96624257,84.239,84.153,3.6909453]
[1770734241365,3.94857315,84.219,84.153,3.6909453]
[1770734241564,10.6973,84.2,84.153,3.6909453]
[1770734241765,3.94857315,84.219,84.153,3.6909453]
[1770734242164,10.6949,84.219,84.165,10.7016]
[1770734242369,13.6306416,84.24,84.153,3.6909453]
[1770734242569,13.6306416,84.24,84.13,9.68206845]
[1770734242570,9.68206845,84.26,84.171,3.8240494]
[1770734242771,9.68206845,84.26,84.173,3.8240494]
[1770734242961,9.68206845,84.26,84.175,3.8240494]
[1770734243157,21.3699,84.298,84.139,166.5226]
[1770734243158,9.68206845,84.28,84.206,3.8240494]
[1770734243364,13.60251549,84.28,84.206,3.8240494]
[1770734243559,13.60251549,84.28,84.107,11.84]
[1770734243560,3.92044704,84.279,84.157,3.8240494]
[1770734243763,3.92044704,84.279,84.171,3.8240494]
[1770734244063,3.92044704,84.279,84.173,3.8240494]
[1770734244272,3.92044704,84.279,84.189,10.6985]
[1770734244965,128.86,84.284,84.159,3.8240494]
[1770734244966,3.9116305,84.259,84.159,3.8240494]
[1770734245167,3.9116305,84.259,84.15,9.68206845]
[1770734245168,9.68206845,84.24,84.161,3.8240494]
[1770734245368,3.9116305,84.239,84.162,9.77155176]
[1770734245566,10.6947,84.22,84.162,9.77155176]
[1770734245765,10.6947,84.22,84.161,3.8240494]
[1770734246365,10.6947,84.22,84.15,9.68206845]
[1770734246366,3.90105265,84.219,84.14,3.8240494]
[1770734246567,3.90105265,84.219,84.141,9.79262664]
[1770734246762,3.90105265,84.239,84.151,3.8240494]
[1770734247069,3.90105265,84.219,84.151,3.8240494]
[1770734247270,3.90105265,84.219,84.131,3.8240494]
[1770734247566,3.90105265,84.219,84.133,3.8240494]
[1770734247771,3.90105265,84.219,84.135,3.8240494]
[1770734247966,3.90105265,84.219,84.136,13.62704355]
[1770734248169,3.90105265,84.193,84.137,9.80299415]
[1770734248472,3.88674297,84.215,84.139,3.8240494]
[1770734248676,9.68170235,84.22,84.141,3.8240494]
[1770734248865,9.68170235,84.22,84.143,3.8240494]
[1770734249174,10.6956,84.214,84.155,10.7029]
[1770734249376,10.6956,84.214,84.156,9.82424374]
[1770734249577,10.6956,84.214,84.157,9.82424374]
[1770734249777,10.6956,84.214,84.145,3.8240494]
[1770734249974,10.6956,84.214,84.147,3.8240494]
[1770734250171,10.6943,84.223,84.158,3.8240494]
[1770734250367,10.6943,84.223,84.159,9.82402207]
[1770734250572,10.6943,84.223,84.16,9.82402207]
[1770734250772,10.6943,84.223,84.161,9.82402207]
[1770734250972,10.6943,84.223,84.163,10.7019]
[1770734251173,10.6943,84.223,84.164,9.82402207]
[1770734251570,10.6931,84.233,84.165,3.8240494]
[1770734251867,3.88674297,84.236,84.167,3.8240494]
[1770734252062,3.88674297,84.236,84.168,9.82402207]
[1770734252872,10.6961,84.209,84.168,9.82402207]
[1770734253273,10.6961,84.209,84.169,9.8365629]
[1770734253471,10.6961,84.209,84.148,3.8240494]
[1770734253671,10.6961,84.209,84.149,13.66060411]
[1770734253872,3.86739095,84.219,84.15,9.83655471]
[1770734254073,3.86739095,84.199,84.151,5.471e-05]
[1770734254269,3.86739095,84.199,84.121,3.8240494]
[1770734254476,3.86739095,84.199,84.047,21.89194204]
[1770734254477,10.7112,84.091,84.01,10.7214]
[1770734254781,3.94857315,84.096,84.0,9.68170235]
[1770734255084,10.7139,84.07,83.991,10.7238]
[1770734255379,3.94857315,84.096,83.99,9.68170235]
[1770734255579,10.7157,84.055,83.983,10.7248]
[1770734255767,3.94857315,84.089,84.0,9.68170235]
[1770734256171,3.94857315,84.089,83.964,2.28877817]
[1770734256371,3.94857315,84.069,83.981,3.8240494]
[1770734256977,3.94857315,84.092,84.001,3.8240494]
[1770734257483,3.94857315,84.092,84.021,3.8240494]
[1770734257672,3.94857315,84.116,84.021,3.8240494]
[1770734257872,10.711,84.092,84.021,3.8240494]
[1770734258382,3.94857315,84.116,84.041,3.8240494]
[1770734258580,3.94857315,84.139,84.061,3.8240494]
[1770734259083,10.7068,84.125,84.061,3.8240494]
[1770734259288,3.94857315,84.139,84.061,3.8240494]
[1770734259678,3.94857315,84.139,84.07,13.50575175]
[1770734259877,3.94857315,84.139,84.07,3.8240494]
[1770734260381,3.94857315,84.139,84.047,3.8240494]
[1770734260682,3.94857315,84.139,84.0,9.68170235]
[1770734260683,3.94857315,84.079,83.965,3.8240494]
[1770734260879,3.94857315,84.059,83.978,3.8240494]
[1770734261486,9.68170235,84.06,83.961,3.8240494]
[1770734261487,3.94857315,84.039,83.961,3.8240494]
[1770734261786,3.94857315,84.039,83.964,7.817e-05]
[1770734262088,9.68170235,84.03,83.964,7.817e-05]
[1770734262283,3.94857315,84.039,83.964,7.817e-05]
[1770734262475,3.94857315,84.029,83.964,7.817e-05]
[1770734263080,3.94857315,84.023,83.964,7.817e-05]
[1770734263475,3.94857315,84.019,83.964,7.817e-05]
[1770734264487,3.94857315,84.004,83.964,7.817e-05]
[1770734264885,3.94857315,84.004,83.914,3.8240494]
[1770734265092,3.94857315,84.001,83.915,10.7335]
[1770734265286,3.94857315,84.001,83.916,3.8240494]
[1770734265585,10.7195,84.026,83.947,10.7294]
[1770734265781,10.7195,84.026,83.948,3.8240494]
[1770734265983,3.94857315,84.02,83.948,3.8240494]
[1770734266294,3.94857315,84.026,83.952,3.8240494]
[1770734266489,3.94857315,84.026,83.901,3.8240494]
[1770734266792,10.721,84.014,83.928,3.8240494]
[1770734266978,3.94857315,84.014,83.928,3.8240494]
[1770734267178,10.7212,84.012,83.94,10.7303]
[1770734267379,2.07253886,84.011,83.928,3.8240494]
[1770734267787,6.02111201,84.011,83.928,14.5559494]
[1770734268192,6.02111201,84.011,83.929,3.8240494]
[1770734268486,10.7232,83.997,83.929,3.8240494]
[1770734268688,10.7232,83.997,83.922,10.7326]
[1770734268689,3.94857315,84.009,83.907,3.8240494]
[1770734268989,3.94857315,83.985,83.907,3.8240494]
[1770734269396,3.94857315,83.985,83.932,10.7314]
[1770734269581,3.94857315,83.985,83.907,3.8240494]
[1770734269787,7.94e-05,83.932,83.907,3.8240494]
[1770734269987,7.94e-05,83.932,83.92,14.61310002]
[1770734270301,7.94e-05,83.932,83.881,3.88020002]
[1770734270594,7.94e-05,83.932,83.859,3.88020002]
[1770734271186,7.94e-05,83.932,83.88,10.738]
[1770734271493,7.94e-05,83.932,83.859,3.88020002]
[1770734271689,7.94e-05,83.932,83.901,10.7352]
[1770734272389,7.94e-05,83.932,83.894,3.88020002]
[1770734273193,7.94e-05,83.932,83.852,3.88020002]
[1770734273492,7.94e-05,83.932,83.84,204.36068322]
[1770734273493,7.94e-05,83.932,83.883,3.88020002]
[1770734273988,7.94e-05,83.932,83.889,10.7368]
[1770734274191,7.94e-05,83.932,83.883,3.88020002]
[1770734274991,7.94e-05,83.932,83.847,3.88020002]
[1770734275188,7.94e-05,83.932,83.845,3.88020002]
[1770734275189,4.06375413,83.931,83.845,3.88020002]
[1770734275791,166.789,84.005,83.83,37.24398322]
[1770734275792,4.06375413,83.953,83.851,3.88020002]
[1770734276290,129.52,83.982,83.851,3.88020002]
[1770734276291,4.06375413,83.941,83.851,3.88020002]
[1770734276890,4.06375413,83.969,83.873,3.88020002]
[1770734277293,37.24398322,83.97,83.813,167.169]
[1770734277294,4.06375413,83.949,83.824,3.88020002]
[1770734277489,4.06375413,83.941,83.859,3.88020002]
[1770734277886,10.7307,83.938,83.872,10.739]
[1770734278399,4.06375413,83.941,83.859,3.88020002]
[1770734278593,4.06375413,83.941,83.872,10.739]
[1770734278785,4.06375413,83.941,83.859,3.88020002]
[1770734279296,4.06375413,83.933,83.859,3.88020002]
[1770734279498,4.06375413,83.962,83.859,3.88020002]
[1770734279799,4.06375413,83.941,83.859,3.88020002]
[1770734280187,37.24398322,83.95,83.859,3.88020002]
[1770734280188,4.06375413,83.924,83.86,10.7406]
[1770734280492,4.06375413,83.924,83.821,3.88020002]
[1770734280792,4.06375413,83.924,83.845,3.88020002]
[1770734280999,4.06375413,83.924,83.816,3.88020002]
[1770734281497,4.06375413,83.918,83.846,10.7423]
[1770734282092,4.06375413,83.912,83.84,3.88020002]
[1770734282297,4.06375413,83.912,83.834,10.7438]
[1770734282494,4.06375413,83.91,83.834,10.7438]
[1770734283095,4.06375413,83.894,83.818,3.88020002]
[1770734283285,4.06375413,83.894,83.787,3.88020002]
[1770734283487,4.06375413,83.897,83.807,3.88020002]
[1770734283693,4.06375413,83.879,83.807,3.88020002]
[1770734283888,4.06375413,83.899,83.822,10.7454]
[1770734284295,4.06375413,83.879,83.786,3.88020002]
[1770734284601,4.06375413,83.879,83.8,10.7483]
[1770734284796,4.06375413,83.859,83.786,3.88020002]
[1770734284999,4.06375413,83.859,83.797,10.7486]
[1770734285198,4.06375413,83.857,83.786,3.88020002]
[1770734285404,4.06375413,83.857,83.761,3.88020002]
[1770734285701,4.06375413,83.815,83.74,3.88020002]
[1770734286308,4.06375413,83.806,83.74,3.88020002]
[1770734287010,4.06375413,83.799,83.72,9.75425596]
[1770734287196,4.06375413,83.819,83.741,10.7558]
[1770734287603,4.06375413,83.819,83.691,2.0772399]
[1770734287604,4.06375413,83.799,83.717,3.88020002]
[1770734287799,4.06375413,83.779,83.701,14.64110002]
[1770734288002,4.06375413,83.809,83.72,9.75425596]
[1770734288199,4.06375413,83.789,83.702,3.88020002]
[1770734288402,9.75425596,83.81,83.702,3.88020002]
[1770734288403,4.06375413,83.779,83.702,3.88020002]
[1770734288707,9.75425596,83.76,83.662,3.88020002]
[1770734288900,9.75425596,83.76,83.693,10.762]
[1770734289208,4.06375413,83.779,83.701,3.88020002]
[1770734289408,4.06375413,83.802,83.721,3.88020002]
[1770734289809,4.06375413,83.802,83.729,10.7573]
[1770734289997,4.06375413,83.823,83.731,3.88020002]
[1770734290202,9.75425596,83.83,83.731,3.88020002]
[1770734290405,4.06375413,83.831,83.751,3.88020002]
[1770734290604,10.7423,83.847,83.77,13.63445598]
[1770734290803,4.06375413,83.852,83.775,3.88020002]
[1770734291011,4.06375413,83.874,83.791,3.88020002]
[1770734291407,10.739,83.873,83.791,3.88020002]
[1770734291607,166.9279,83.935,83.77,9.75425596]
[1770734291608,4.06375413,83.897,83.801,3.88020002]
[1770734291807,4.06375413,83.897,83.807,3.88020002]
[1770734292011,9.75425596,83.87,83.786,3.88020002]
[1770734292210,4.06375413,83.869,83.786,3.88020002]
[1770734292608,10.7408,83.859,83.786,3.88020002]
[1770734293009,14.80455413,83.859,83.786,3.88020002]
[1770734293205,10.7418,83.851,83.786,3.88020002]
[1770734293413,4.06375413,83.88,83.801,3.88020002]
[1770734293613,10.7384,83.877,83.801,3.88020002]
[1770734293811,4.06375413,83.876,83.801,3.88020002]
[1770734294209,10.7393,83.871,83.801,3.88020002]
[1770734294614,9.75425596,83.88,83.801,3.88020002]
[1770734294615,4.06375413,83.87,83.801,3.88020002]
[1770734294807,9.75425596,83.86,83.779,3.88020002]
[1770734295014,10.7418,83.851,83.779,3.88020002]
[1770734295313,9.76278848,83.89,83.811,3.88020002]
[1770734295508,4.06375413,83.893,83.811,3.88020002]
[1770734296809,4.06375413,83.889,83.811,3.88020002]
[1770734297211,4.06375413,83.889,83.79,9.76278848]
[1770734297212,4.06375413,83.889,83.791,3.88020002]
[1770734297613,129.52,83.901,83.791,3.88020002]
[1770734297614,4.06375413,83.869,83.791,3.88020002]
[1770734298117,10.7434,83.838,83.771,3.88020002]
[1770734298317,4.06375413,83.869,83.771,3.88020002]
[1770734298725,10.7432,83.84,83.771,3.88020002]
[1770734298918,4.06375413,83.849,83.771,3.88020002]
[1770734299308,10.7459,83.819,83.771,3.88020002]
[1770734299511,4.06375413,83.868,83.791,3.88020002]
[1770734300220,10.7424,83.847,83.791,3.88020002]
[1770734300614,3.81775905,83.845,83.77,13.79034364]
[1770734300815,3.81775905,83.845,83.77,4.02755516]
[1770734301015,3.81775905,83.829,83.747,4.02755516]
[1770734301633,4.06725894,83.845,83.751,3.75578905]
[1770734301822,4.06725894,83.829,83.751,3.75578905]
[1770734302335,167.0841,83.857,83.731,3.75578905]
[1770734302336,10.7489,83.796,83.731,3.75578905]
[1770734302533,9.76278848,83.82,83.731,3.75578905]
[1770734302733,9.76278848,83.82,83.738,3.75578905]
[1770734302734,10.7472,83.809,83.738,3.75578905]
[1770734302932,4.06725894,83.819,83.738,3.75578905]
[1770734304040,9.76278848,83.81,83.738,3.75578905]
[1770734304235,4.06725894,83.789,83.702,3.75578905]
[1770734304537,4.06725894,83.789,83.711,3.75578905]
[1770734304729,10.7495,83.792,83.724,3.75578905]
[1770734304923,4.06725894,83.809,83.731,3.75578905]
[1770734305537,4.06725894,83.809,83.73,9.76278848]
[1770734305538,10.7491,83.794,83.734,14.51248905]
[1770734305743,10.7491,83.794,83.734,3.75578905]
[1770734306337,4.06725894,83.809,83.734,3.75578905]
[1770734306837,4.06725894,83.809,83.711,3.75578905]
[1770734307037,10.7504,83.784,83.72,3.75578905]
[1770734307232,4.06725894,83.809,83.72,3.75578905]
[1770734307537,10.7476,83.806,83.737,3.75578905]
[1770734307741,9.76278848,83.83,83.737,3.75578905]
[1770734307943,10.7474,83.808,83.745,3.75578905]
[1770734308238,4.06725894,83.829,83.745,3.75578905]
[1770734308448,10.7457,83.821,83.752,3.75578905]
[1770734308630,4.06725894,83.829,83.752,3.75578905]
[1770734309032,10.7472,83.809,83.752,3.75578905]
[1770734309739,4.06725894,83.809,83.729,3.75578905]
[1770734309937,4.06725894,83.809,83.731,3.75578905]
[1770734310136,4.06725894,83.829,83.731,3.75578905]
[1770734310338,4.06725894,83.829,83.745,3.75578905]
[1770734310847,4.06725894,83.809,83.745,3.75578905]
[1770734311248,4.06725894,83.789,83.68,9.76278848]
[1770734311738,4.06725894,83.769,83.68,9.76278848]